[Event "*** Qualifier 4: Titled Tuesday 3|2 Blitz"]
[Site "Chess.com"]
[Date "2017.04.25"]
[Round "2"]
[White "ChessQueen"]
[Black "Rating-Schmating"]
[Result "1-0"]
[WhiteElo "2489"]
[BlackElo "2207"]
[TimeControl "180+2"]
[EndTime "13:16:52 PDT"]
[Termination "ChessQueen won by checkmate"]

1. e4 {[%clk 0:03:02]} 1... e6 {[%clk 0:03:00.1]} 2. d4 {[%clk 0:03:02.2]} 2...
d5 {[%clk 0:03:00.7]} 3. Nc3 {[%clk 0:03:01.9]} 3... Bb4 {[%clk 0:03:01.2]} 4.
a3 {[%clk 0:03:02.2]} 4... Bxc3+ {[%clk 0:03:00.3]} 5. bxc3 {[%clk 0:03:03.4]}
5... dxe4 {[%clk 0:03:01.8]} 6. Qg4 {[%clk 0:03:04.4]} 6... Qf6 {[%clk
0:03:03.1]} 7. Qxe4 {[%clk 0:03:03.5]} 7... Qf5 {[%clk 0:03:04.4]} 8. Qxf5
{[%clk 0:03:02.3]} 8... exf5 {[%clk 0:03:06.3]} 9. Nf3 {[%clk 0:03:03.2]} 9...
Nf6 {[%clk 0:03:06.7]} 10. Bd3 {[%clk 0:03:01.8]} 10... c6 {[%clk 0:03:07.6]}
11. O-O {[%clk 0:03:02.3]} 11... O-O {[%clk 0:03:08.8]} 12. Bb2 {[%clk
0:03:03.2]} 12... Be6 {[%clk 0:03:09.9]} 13. c4 {[%clk 0:03:03.5]} 13... Nbd7
{[%clk 0:03:10.9]} 14. Rfe1 {[%clk 0:03:03.4]} 14... Nb6 {[%clk 0:03:11.9]} 15.
Nd2 {[%clk 0:02:51.6]} 15... Rad8 {[%clk 0:03:11.6]} 16. a4 {[%clk 0:02:49.4]}
16... a5 {[%clk 0:03:11.9]} 17. Bc3 {[%clk 0:02:49.1]} 17... Rfe8 {[%clk
0:03:09.8]} 18. Bxa5 {[%clk 0:02:48.5]} 18... Nfd7 {[%clk 0:03:06.4]} 19. c5
{[%clk 0:02:47.3]} 19... Nd5 {[%clk 0:03:04.3]} 20. Bxd8 {[%clk 0:02:47.3]}
20... Rxd8 {[%clk 0:03:06.2]} 21. Nc4 {[%clk 0:02:41.9]} 21... Ra8 {[%clk
0:02:53.4]} 22. Nd6 {[%clk 0:02:40.7]} 22... g6 {[%clk 0:02:54.1]} 23. Nxb7
{[%clk 0:02:39.8]} 23... Nc3 {[%clk 0:02:55.7]} 24. a5 {[%clk 0:02:38.4]} 24...
Nb8 {[%clk 0:02:54.3]} 25. a6 {[%clk 0:02:37.2]} 25... Nb5 {[%clk 0:02:55.5]}
26. d5 {[%clk 0:02:25.7]} 26... Bxd5 {[%clk 0:02:50.7]} 27. Re8+ {[%clk
0:02:26.1]} 27... Kg7 {[%clk 0:02:51.7]} 28. Bxb5 {[%clk 0:02:22.4]} 28... cxb5
{[%clk 0:02:50.3]} 29. a7 {[%clk 0:02:23.6]} 29... Bxb7 {[%clk 0:02:50.7]} 30.
Rxb8 {[%clk 0:02:23.5]} 30... Be4 {[%clk 0:02:46.9]} 31. Rxa8 {[%clk 0:02:24.1]}
31... Bxa8 {[%clk 0:02:47.7]} 32. Rb1 {[%clk 0:02:24.8]} 32... Bc6 {[%clk
0:02:48.9]} 33. Rxb5 {[%clk 0:02:24.9]} 33... Bxb5 {[%clk 0:02:50]} 34. a8=Q
{[%clk 0:02:25.7]} 34... Bc4 {[%clk 0:02:51.5]} 35. c6 {[%clk 0:02:26.5]} 35...
Bd5 {[%clk 0:02:52.6]} 36. c4 {[%clk 0:02:27]} 36... Be4 {[%clk 0:02:53.3]} 37.
f3 {[%clk 0:02:27.7]} 37... Bxc6 {[%clk 0:02:54.2]} 38. Qxc6 {[%clk 0:02:28]}
38... Kh6 {[%clk 0:02:55.9]} 39. Qf6 {[%clk 0:02:28]} 39... Kh5 {[%clk
0:02:57.8]} 40. Qxf7 {[%clk 0:02:27.4]} 40... h6 {[%clk 0:02:58.8]} 41. Qd5
{[%clk 0:02:24.8]} 41... g5 {[%clk 0:03:00.7]} 42. c5 {[%clk 0:02:25.1]} 42...
f4 {[%clk 0:03:01.7]} 43. c6 {[%clk 0:02:25]} 43... Kg6 {[%clk 0:03:03.6]} 44.
g4 {[%clk 0:02:25]} 44... fxg3 {[%clk 0:03:04.7]} 45. hxg3 {[%clk 0:02:26.2]}
45... Kh5 {[%clk 0:03:06.6]} 46. g4+ {[%clk 0:02:26.7]} 46... Kh4 {[%clk
0:03:08.5]} 47. Qe6 {[%clk 0:02:23.7]} 47... h5 {[%clk 0:03:09.9]} 48. Kg2
{[%clk 0:02:21.8]} 48... hxg4 {[%clk 0:03:11]} 49. Qxg4# {[%clk 0:02:22.5]} 1-0

[Event "*** Qualifier 4: Titled Tuesday 3|2 Blitz"]
[Site "Chess.com"]
[Date "2017.04.25"]
[Round "2"]
[White "bugsbunny444"]
[Black "mc4chess"]
[Result "1-0"]
[WhiteElo "2370"]
[BlackElo "2165"]
[TimeControl "180+2"]
[EndTime "13:17:23 PDT"]
[Termination "bugsbunny444 won on time"]

1. Nf3 {[%clk 0:03:02]} 1... c5 {[%clk 0:02:54.4]} 2. c4 {[%clk 0:03:03.1]} 2...
Nf6 {[%clk 0:02:55]} 3. g3 {[%clk 0:03:03.8]} 3... g6 {[%clk 0:02:50.1]} 4. b3
{[%clk 0:03:05.2]} 4... Bg7 {[%clk 0:02:38.6]} 5. Bb2 {[%clk 0:03:06]} 5... Nc6
{[%clk 0:02:39.2]} 6. Bg2 {[%clk 0:03:07.3]} 6... O-O {[%clk 0:02:39.5]} 7. O-O
{[%clk 0:03:08.8]} 7... d5 {[%clk 0:02:38.3]} 8. cxd5 {[%clk 0:03:10.2]} 8...
Nxd5 {[%clk 0:02:40.2]} 9. Bxg7 {[%clk 0:03:11.4]} 9... Kxg7 {[%clk 0:02:42.1]}
10. d4 {[%clk 0:03:12.9]} 10... cxd4 {[%clk 0:02:36.8]} 11. Nxd4 {[%clk
0:03:13.8]} 11... Nxd4 {[%clk 0:02:37.6]} 12. Qxd4+ {[%clk 0:03:15.7]} 12... Nf6
{[%clk 0:02:38.7]} 13. Qe5 {[%clk 0:03:17.3]} 13... Qb6 {[%clk 0:02:35.1]} 14.
Nc3 {[%clk 0:03:13.9]} 14... Be6 {[%clk 0:02:30.1]} 15. Na4 {[%clk 0:03:12.2]}
15... Qb4 {[%clk 0:02:17]} 16. Nc5 {[%clk 0:03:04.7]} 16... Bc8 {[%clk
0:02:05.5]} 17. Qxe7 {[%clk 0:02:49.3]} 17... Re8 {[%clk 0:02:04.4]} 18. Ne6+
{[%clk 0:02:49.7]} 1-0

[Event "*** Qualifier 4: Titled Tuesday 3|2 Blitz"]
[Site "Chess.com"]
[Date "2017.04.25"]
[Round "2"]
[White "Ingemars_Jesse"]
[Black "saraswathii"]
[Result "1-0"]
[WhiteElo "2456"]
[BlackElo "2206"]
[TimeControl "180+2"]
[EndTime "13:17:24 PDT"]
[Termination "Ingemars_Jesse won by resignation"]

1. Nf3 {[%clk 0:03:02]} 1... d5 {[%clk 0:03:00.4]} 2. g3 {[%clk 0:03:03.4]} 2...
Nf6 {[%clk 0:03:01.6]} 3. Bg2 {[%clk 0:03:04.9]} 3... g6 {[%clk 0:03:02.9]} 4.
O-O {[%clk 0:03:06.4]} 4... Bg7 {[%clk 0:03:04.5]} 5. d4 {[%clk 0:03:08]} 5...
O-O {[%clk 0:03:06]} 6. Nbd2 {[%clk 0:03:09.5]} 6... Bf5 {[%clk 0:03:06.8]} 7.
c4 {[%clk 0:03:08.3]} 7... c6 {[%clk 0:03:07.6]} 8. Qb3 {[%clk 0:03:08.4]} 8...
Qb6 {[%clk 0:03:05.9]} 9. c5 {[%clk 0:03:02.6]} 9... Qxb3 {[%clk 0:03:06.7]} 10.
axb3 {[%clk 0:03:04.5]} 10... Nbd7 {[%clk 0:03:06.5]} 11. b4 {[%clk 0:03:02.1]}
11... Ne4 {[%clk 0:03:04.1]} 12. Nb3 {[%clk 0:02:53.9]} 12... b6 {[%clk
0:03:01.3]} 13. Bf4 {[%clk 0:02:45.8]} 13... bxc5 {[%clk 0:02:56.6]} 14. bxc5
{[%clk 0:02:41]} 14... f6 {[%clk 0:02:51.3]} 15. Na5 {[%clk 0:02:33.7]} 15... e5
{[%clk 0:02:51]} 16. Be3 {[%clk 0:02:26.1]} 16... exd4 {[%clk 0:02:50.5]} 17.
Nxd4 {[%clk 0:02:24.4]} 17... Nexc5 {[%clk 0:02:45.4]} 18. Nxf5 {[%clk
0:02:21.8]} 18... gxf5 {[%clk 0:02:45.7]} 19. Nxc6 {[%clk 0:02:23]} 19... Ne4
{[%clk 0:02:44.7]} 20. Ne7+ {[%clk 0:02:20.4]} 20... Kf7 {[%clk 0:02:45.2]} 21.
Nxd5 {[%clk 0:02:12.2]} 21... Rfc8 {[%clk 0:02:40.9]} 22. Rfd1 {[%clk
0:01:54.5]} 22... Ne5 {[%clk 0:02:33.4]} 23. Bxa7 {[%clk 0:01:37.4]} 23... Rc2
{[%clk 0:02:26.9]} 24. Bd4 {[%clk 0:01:32.3]} 24... Rxa1 {[%clk 0:02:24]} 25.
Rxa1 {[%clk 0:01:34.2]} 25... Rxe2 {[%clk 0:02:12.1]} 26. Ra7+ {[%clk
0:01:32.9]} 26... Kg6 {[%clk 0:02:09]} 27. Nf4+ {[%clk 0:01:32.6]} 1-0

[Event "*** Qualifier 4: Titled Tuesday 3|2 Blitz"]
[Site "Chess.com"]
[Date "2017.04.25"]
[Round "2"]
[White "LyonBeast"]
[Black "scrapnel"]
[Result "1-0"]
[WhiteElo "2769"]
[BlackElo "2469"]
[TimeControl "180+2"]
[EndTime "13:17:46 PDT"]
[Termination "LyonBeast won by resignation"]

1. e4 {[%clk 0:03:02]} 1... c5 {[%clk 0:03:00.3]} 2. Nf3 {[%clk 0:02:56.8]} 2...
d6 {[%clk 0:03:01.2]} 3. d4 {[%clk 0:02:57]} 3... cxd4 {[%clk 0:03:02.4]} 4.
Nxd4 {[%clk 0:02:58.9]} 4... Nf6 {[%clk 0:03:03.6]} 5. Nc3 {[%clk 0:03:00.5]}
5... a6 {[%clk 0:03:05.2]} 6. Be3 {[%clk 0:03:01.3]} 6... e6 {[%clk 0:03:05.9]}
7. g4 {[%clk 0:03:01.5]} 7... h6 {[%clk 0:03:05.7]} 8. Bg2 {[%clk 0:03:02.2]}
8... Nbd7 {[%clk 0:03:00.7]} 9. f4 {[%clk 0:02:47.4]} 9... e5 {[%clk 0:02:52.9]}
10. Nf5 {[%clk 0:02:45]} 10... Qc7 {[%clk 0:02:43.3]} 11. Qe2 {[%clk 0:02:38.6]}
11... g6 {[%clk 0:02:39.5]} 12. O-O-O {[%clk 0:02:38.3]} 12... gxf5 {[%clk
0:02:26.9]} 13. exf5 {[%clk 0:02:40.2]} 13... Rb8 {[%clk 0:02:16.2]} 14. g5
{[%clk 0:02:31.6]} 14... b5 {[%clk 0:02:15.2]} 15. gxf6 {[%clk 0:02:30.2]} 15...
Nxf6 {[%clk 0:02:15.7]} 16. fxe5 {[%clk 0:02:30.6]} 16... dxe5 {[%clk 0:02:15]}
17. Bf4 {[%clk 0:02:31.8]} 17... Rg8 {[%clk 0:01:32.1]} 18. Rhe1 {[%clk
0:02:27.5]} 18... Nd7 {[%clk 0:00:52.3]} 19. Bxe5 {[%clk 0:02:21.4]} 19... Nxe5
{[%clk 0:00:48.3]} 20. Bc6+ {[%clk 0:02:20.4]} 1-0

[Event "*** Qualifier 4: Titled Tuesday 3|2 Blitz"]
[Site "Chess.com"]
[Date "2017.04.25"]
[Round "2"]
[White "TregubovP"]
[Black "rithwik2002"]
[Result "1-0"]
[WhiteElo "1923"]
[BlackElo "1790"]
[TimeControl "180+2"]
[EndTime "13:18:41 PDT"]
[Termination "TregubovP won by resignation"]

1. d4 {[%clk 0:03:02]} 1... Nf6 {[%clk 0:02:59.7]} 2. c4 {[%clk 0:03:02.9]} 2...
e6 {[%clk 0:03:00.8]} 3. Nc3 {[%clk 0:03:02.1]} 3... d5 {[%clk 0:03:01.9]} 4.
cxd5 {[%clk 0:03:00.4]} 4... exd5 {[%clk 0:03:02.8]} 5. Bg5 {[%clk 0:02:59.1]}
5... Nbd7 {[%clk 0:03:00.9]} 6. e3 {[%clk 0:02:58.6]} 6... c6 {[%clk 0:02:59.4]}
7. Bd3 {[%clk 0:02:55.7]} 7... Be7 {[%clk 0:03:00.3]} 8. Nf3 {[%clk 0:02:56.3]}
8... Nh5 {[%clk 0:02:59.2]} 9. Bxe7 {[%clk 0:02:50]} 9... Qxe7 {[%clk
0:03:01.1]} 10. O-O {[%clk 0:02:43.7]} 10... g6 {[%clk 0:02:54.4]} 11. e4 {[%clk
0:02:36.8]} 11... dxe4 {[%clk 0:02:45.2]} 12. Nxe4 {[%clk 0:02:38.4]} 12... O-O
{[%clk 0:02:46.5]} 13. Re1 {[%clk 0:02:39.8]} 13... Ndf6 {[%clk 0:02:38.6]} 14.
Nc5 {[%clk 0:02:07.5]} 14... Qc7 {[%clk 0:02:32.1]} 15. Qd2 {[%clk 0:02:05.6]}
15... Qf4 {[%clk 0:02:21.1]} 16. Rad1 {[%clk 0:01:56]} 16... b6 {[%clk
0:02:11.8]} 17. Ne4 {[%clk 0:01:55.9]} 17... Nxe4 {[%clk 0:01:56.9]} 18. Bxe4
{[%clk 0:01:56.8]} 18... Qxd2 {[%clk 0:01:56.7]} 19. Rxd2 {[%clk 0:01:56.6]}
19... Bd7 {[%clk 0:01:55.8]} 20. Ne5 {[%clk 0:01:57.2]} 20... Rad8 {[%clk
0:01:45.8]} 21. Bxc6 {[%clk 0:01:41.7]} 21... Be6 {[%clk 0:01:36.9]} 22. d5
{[%clk 0:01:40]} 22... Nf6 {[%clk 0:01:24.2]} 23. Red1 {[%clk 0:01:40.8]} 23...
Bf5 {[%clk 0:01:17.1]} 24. d6 {[%clk 0:01:37.9]} 24... Ne4 {[%clk 0:01:11.9]}
25. Bxe4 {[%clk 0:01:38]} 25... Bxe4 {[%clk 0:01:12.8]} 26. f3 {[%clk
0:01:34.5]} 26... Rfe8 {[%clk 0:01:11.3]} 27. Ng4 {[%clk 0:01:32]} 27... Bc6
{[%clk 0:01:01]} 28. Nf6+ {[%clk 0:01:32.6]} 28... Kg7 {[%clk 0:01:02.1]} 29.
Nxe8+ {[%clk 0:01:33.6]} 29... Rxe8 {[%clk 0:01:04]} 30. d7 {[%clk 0:01:34.4]}
30... Rd8 {[%clk 0:01:05.1]} 31. Rd6 {[%clk 0:01:35.8]} 1-0

[Event "*** Qualifier 4: Titled Tuesday 3|2 Blitz"]
[Site "Chess.com"]
[Date "2017.04.25"]
[Round "2"]
[White "Konavets"]
[Black "TheCount"]
[Result "1-0"]
[WhiteElo "2694"]
[BlackElo "2471"]
[TimeControl "180+2"]
[EndTime "13:19:03 PDT"]
[Termination "Konavets won by resignation"]

1. e4 {[%clk 0:03:02]} 1... e5 {[%clk 0:02:58.9]} 2. Bc4 {[%clk 0:03:03.2]} 2...
Nc6 {[%clk 0:02:58.9]} 3. Nf3 {[%clk 0:03:03.3]} 3... Nf6 {[%clk 0:02:59.7]} 4.
d3 {[%clk 0:03:04.2]} 4... Bc5 {[%clk 0:03:00.6]} 5. O-O {[%clk 0:03:03.9]} 5...
a6 {[%clk 0:03:00.1]} 6. a4 {[%clk 0:03:02.1]} 6... O-O {[%clk 0:02:58.6]} 7. c3
{[%clk 0:03:03.5]} 7... d5 {[%clk 0:02:48.8]} 8. exd5 {[%clk 0:03:04.4]} 8...
Nxd5 {[%clk 0:02:50.7]} 9. Nbd2 {[%clk 0:03:04.8]} 9... Nb6 {[%clk 0:02:44.7]}
10. Ba2 {[%clk 0:03:05.7]} 10... Qxd3 {[%clk 0:02:40.5]} 11. Bb1 {[%clk
0:03:07.1]} 11... Qd8 {[%clk 0:02:38.8]} 12. b4 {[%clk 0:03:08.3]} 12... Be7
{[%clk 0:02:37.5]} 13. Qc2 {[%clk 0:03:08.4]} 13... f5 {[%clk 0:02:26.8]} 14. b5
{[%clk 0:03:04.7]} 14... axb5 {[%clk 0:02:24.4]} 15. Ba2+ {[%clk 0:03:05.2]}
15... Kh8 {[%clk 0:02:23.7]} 16. axb5 {[%clk 0:03:06.2]} 16... e4 {[%clk
0:02:25.3]} 17. bxc6 {[%clk 0:02:51.6]} 17... exf3 {[%clk 0:02:26.2]} 18. Nxf3
{[%clk 0:02:53.2]} 18... bxc6 {[%clk 0:02:24.9]} 19. Bf4 {[%clk 0:02:47.6]}
19... Nd5 {[%clk 0:02:18.6]} 20. Be5 {[%clk 0:02:48.2]} 20... Bf6 {[%clk
0:02:17.5]} 21. Rad1 {[%clk 0:02:39.9]} 21... Bxe5 {[%clk 0:01:57.4]} 22. Nxe5
{[%clk 0:02:39.9]} 22... Qf6 {[%clk 0:01:56.4]} 23. Rfe1 {[%clk 0:02:40.8]}
23... Be6 {[%clk 0:01:10.5]} 24. Nxc6 {[%clk 0:02:31.4]} 24... Qxc3 {[%clk
0:00:39.1]} 25. Bb1 {[%clk 0:02:21.9]} 25... Qxc2 {[%clk 0:00:29.5]} 26. Bxc2
{[%clk 0:02:23.8]} 26... Rfe8 {[%clk 0:00:24.6]} 27. h4 {[%clk 0:02:18]} 27...
g6 {[%clk 0:00:21.9]} 28. g3 {[%clk 0:02:10.9]} 28... Bf7 {[%clk 0:00:18.2]} 29.
Rxe8+ {[%clk 0:02:03.1]} 29... Rxe8 {[%clk 0:00:18.7]} 30. Bb3 {[%clk
0:02:03.8]} 30... Re6 {[%clk 0:00:08.5]} 31. Bxd5 {[%clk 0:02:00.6]} 31... Rd6
{[%clk 0:00:09.2]} 32. Bf3 {[%clk 0:02:02]} 1-0

[Event "*** Qualifier 4: Titled Tuesday 3|2 Blitz"]
[Site "Chess.com"]
[Date "2017.04.25"]
[Round "2"]
[White "GGuseinov"]
[Black "DiogenesSinopeus"]
[Result "1-0"]
[WhiteElo "2694"]
[BlackElo "2250"]
[TimeControl "180+2"]
[EndTime "13:19:15 PDT"]
[Termination "GGuseinov won by resignation"]

1. e4 {[%clk 0:03:02]} 1... e5 {[%clk 0:03:00.6]} 2. Nf3 {[%clk 0:03:03]} 2...
Nc6 {[%clk 0:03:00.7]} 3. Bb5 {[%clk 0:03:03.8]} 3... a6 {[%clk 0:03:02.1]} 4.
Bxc6 {[%clk 0:03:04.9]} 4... dxc6 {[%clk 0:03:02.5]} 5. O-O {[%clk 0:03:05.5]}
5... Bd6 {[%clk 0:03:03.7]} 6. c3 {[%clk 0:03:05.4]} 6... c5 {[%clk 0:03:03.7]}
7. d4 {[%clk 0:03:06]} 7... cxd4 {[%clk 0:03:05.1]} 8. cxd4 {[%clk 0:03:07]}
8... exd4 {[%clk 0:03:02.5]} 9. Qxd4 {[%clk 0:03:07.8]} 9... f6 {[%clk
0:03:02.9]} 10. Nbd2 {[%clk 0:03:08.5]} 10... Be6 {[%clk 0:02:52.7]} 11. Nc4
{[%clk 0:03:09.2]} 11... Bxh2+ {[%clk 0:02:49.7]} 12. Kxh2 {[%clk 0:03:10.2]}
12... Qxd4 {[%clk 0:02:50.2]} 13. Nxd4 {[%clk 0:03:10.9]} 13... Bxc4 {[%clk
0:02:51.5]} 14. Rd1 {[%clk 0:03:10]} 14... O-O-O {[%clk 0:02:46.8]} 15. Bf4
{[%clk 0:03:08]} 15... g5 {[%clk 0:02:31.5]} 16. Bg3 {[%clk 0:02:59.2]} 16... h5
{[%clk 0:02:29]} 17. Rac1 {[%clk 0:02:55.7]} 17... h4 {[%clk 0:02:21.5]} 18.
Bxc7 {[%clk 0:02:52.5]} 18... Kxc7 {[%clk 0:01:56]} 19. Ne6+ {[%clk 0:02:51]}
19... Kb6 {[%clk 0:01:49.1]} 20. Nxd8 {[%clk 0:02:52.1]} 20... Be2 {[%clk
0:01:36.5]} 21. Rd6+ {[%clk 0:02:52.1]} 21... Ka7 {[%clk 0:01:32.8]} 22. Rc8
{[%clk 0:02:50.2]} 22... h3 {[%clk 0:01:08.8]} 23. g3 {[%clk 0:02:49]} 23... Rh7
{[%clk 0:00:59.8]} 24. Nc6+ {[%clk 0:02:46.3]} 24... bxc6 {[%clk 0:00:54.6]} 25.
Rxg8 {[%clk 0:02:48.2]} 25... g4 {[%clk 0:00:52.4]} 26. Rxf6 {[%clk 0:02:44.7]}
26... Rd7 {[%clk 0:00:38.7]} 27. Rxc6 {[%clk 0:02:38.3]} 27... Bf3 {[%clk
0:00:18.7]} 28. Rf6 {[%clk 0:02:35.1]} 28... Bxe4 {[%clk 0:00:09.3]} 29. Rxg4
{[%clk 0:02:33.7]} 29... Bg2 {[%clk 0:00:10.6]} 30. Rgg6 {[%clk 0:02:21.4]}
30... Kb7 {[%clk 0:00:10]} 31. Rb6+ {[%clk 0:02:20]} 31... Kc7 {[%clk
0:00:09.2]} 32. Rbf6 {[%clk 0:02:13.9]} 32... a5 {[%clk 0:00:07.6]} 33. g4
{[%clk 0:02:14.9]} 33... Kd8 {[%clk 0:00:05]} 34. Rd6 {[%clk 0:02:13.1]} 1-0

[Event "*** Qualifier 4: Titled Tuesday 3|2 Blitz"]
[Site "Chess.com"]
[Date "2017.04.25"]
[Round "2"]
[White "AllStarShark"]
[Black "MyleneFarmer"]
[Result "0-1"]
[WhiteElo "2292"]
[BlackElo "2328"]
[TimeControl "180+2"]
[EndTime "13:19:36 PDT"]
[Termination "MyleneFarmer won on time"]

1. d4 {[%clk 0:03:02]} 1... Nf6 {[%clk 0:02:56.8]} 2. Bg5 {[%clk 0:03:02.5]}
2... c5 {[%clk 0:02:56.7]} 3. Nc3 {[%clk 0:03:02.6]} 3... cxd4 {[%clk
0:02:56.8]} 4. Qxd4 {[%clk 0:03:04.5]} 4... Nc6 {[%clk 0:02:57.9]} 5. Qh4 {[%clk
0:03:05.4]} 5... d6 {[%clk 0:02:37.3]} 6. O-O-O {[%clk 0:03:05.3]} 6... Be6
{[%clk 0:02:38]} 7. e4 {[%clk 0:03:01.2]} 7... Ng4 {[%clk 0:02:37.5]} 8. h3
{[%clk 0:02:55.1]} 8... Nge5 {[%clk 0:02:37.6]} 9. f4 {[%clk 0:02:53.7]} 9...
Ng6 {[%clk 0:02:38.1]} 10. Qh5 {[%clk 0:02:48.9]} 10... h6 {[%clk 0:02:36.7]}
11. Bxe7 {[%clk 0:02:27.8]} 11... Qxe7 {[%clk 0:02:33.6]} 12. f5 {[%clk
0:02:29]} 12... Nf4 {[%clk 0:02:23.1]} 13. Qf3 {[%clk 0:02:26.9]} 13... Qg5
{[%clk 0:02:23.1]} 14. fxe6 {[%clk 0:02:20.7]} 14... Ne2+ {[%clk 0:01:52.7]} 15.
Kb1 {[%clk 0:02:18.4]} 15... Nxc3+ {[%clk 0:01:53.9]} 16. Qxc3 {[%clk
0:02:08.9]} 16... fxe6 {[%clk 0:01:55.1]} 17. Bb5 {[%clk 0:02:09.7]} 17... Qxb5
{[%clk 0:01:55.1]} 18. Nf3 {[%clk 0:00:14.7]} 18... O-O-O {[%clk 0:01:43.9]} 19.
b3 {[%clk 0:00:10.5]} 19... Kb8 {[%clk 0:01:43.7]} 20. a4 {[%clk 0:00:11.8]}
20... Qb6 {[%clk 0:01:44.7]} 21. Nh4 {[%clk 0:00:11.4]} 21... Be7 {[%clk
0:01:44.1]} 22. Ng6 {[%clk 0:00:12.7]} 22... Bf6 {[%clk 0:01:45.6]} 23. Qg3
{[%clk 0:00:11.2]} 23... Rhe8 {[%clk 0:01:30.4]} 24. Rxd6 {[%clk 0:00:11.8]}
24... Qc7 {[%clk 0:01:30.8]} 25. Rxd8+ {[%clk 0:00:13]} 25... Rxd8 {[%clk
0:01:32.7]} 26. Qxc7+ {[%clk 0:00:13.8]} 26... Kxc7 {[%clk 0:01:34.6]} 27. e5
{[%clk 0:00:15.2]} 27... Nxe5 {[%clk 0:01:35.1]} 28. Nxe5 {[%clk 0:00:15.1]}
28... Bxe5 {[%clk 0:01:37]} 29. Rf1 {[%clk 0:00:16.4]} 29... Bf6 {[%clk
0:01:38]} 30. Re1 {[%clk 0:00:17.6]} 30... Rd2 {[%clk 0:01:38.5]} 31. Rxe6
{[%clk 0:00:17.9]} 31... Rd1+ {[%clk 0:01:39.3]} 0-1

[Event "*** Qualifier 4: Titled Tuesday 3|2 Blitz"]
[Site "Chess.com"]
[Date "2017.04.25"]
[Round "2"]
[White "chesstatour"]
[Black "silverback96"]
[Result "0-1"]
[WhiteElo "1881"]
[BlackElo "2039"]
[TimeControl "180+2"]
[EndTime "13:19:43 PDT"]
[Termination "silverback96 won on time"]

1. e4 {[%clk 0:03:02]} 1... c6 {[%clk 0:02:53.8]} 2. d4 {[%clk 0:02:59.9]} 2...
d5 {[%clk 0:02:53.7]} 3. e5 {[%clk 0:02:58.3]} 3... Bf5 {[%clk 0:02:54.1]} 4.
Nf3 {[%clk 0:02:55.2]} 4... e6 {[%clk 0:02:53.3]} 5. Be2 {[%clk 0:02:56.7]} 5...
h6 {[%clk 0:02:52.3]} 6. O-O {[%clk 0:02:57.7]} 6... Bb4 {[%clk 0:02:53.9]} 7.
c3 {[%clk 0:02:58.3]} 7... Ba5 {[%clk 0:02:54.7]} 8. b4 {[%clk 0:02:54.9]} 8...
Bc7 {[%clk 0:02:55.6]} 9. Nbd2 {[%clk 0:02:55.1]} 9... a5 {[%clk 0:02:54.9]} 10.
b5 {[%clk 0:02:46.8]} 10... c5 {[%clk 0:02:54.5]} 11. dxc5 {[%clk 0:02:45.2]}
11... Nd7 {[%clk 0:02:54]} 12. Nd4 {[%clk 0:02:22.4]} 12... Bxe5 {[%clk
0:02:48]} 13. Nxf5 {[%clk 0:01:29.9]} 13... exf5 {[%clk 0:02:47.9]} 14. c6
{[%clk 0:01:18.3]} 14... bxc6 {[%clk 0:02:47.2]} 15. bxc6 {[%clk 0:01:18.6]}
15... Nb6 {[%clk 0:02:49.1]} 16. Qc2 {[%clk 0:01:04.4]} 16... Ne7 {[%clk
0:02:49.1]} 17. c7 {[%clk 0:00:56.8]} 17... Bxc7 {[%clk 0:02:47]} 18. Bb5+
{[%clk 0:00:57.1]} 18... Nd7 {[%clk 0:02:41.4]} 19. Ba3 {[%clk 0:00:49.5]} 19...
O-O {[%clk 0:02:41]} 20. Rfe1 {[%clk 0:00:33.7]} 20... Re8 {[%clk 0:02:41.8]}
21. Bxe7 {[%clk 0:00:18.2]} 21... Rxe7 {[%clk 0:02:42.5]} 22. Qxf5 {[%clk
0:00:18.7]} 22... Rxe1+ {[%clk 0:02:37.8]} 23. Rxe1 {[%clk 0:00:18.8]} 23...
Bxh2+ {[%clk 0:02:39.7]} 24. Kh1 {[%clk 0:00:09.1]} 24... Nf6 {[%clk 0:02:40.2]}
25. g3 {[%clk 0:00:07.5]} 25... d4 {[%clk 0:02:36.1]} 26. c4 {[%clk 0:00:06.5]}
26... Bxg3 {[%clk 0:02:30.9]} 27. fxg3 {[%clk 0:00:07.5]} 27... Qd6 {[%clk
0:02:31.7]} 28. Kg2 {[%clk 0:00:07.4]} 28... Qb4 {[%clk 0:02:31.2]} 29. Re2
{[%clk 0:00:07.1]} 29... a4 {[%clk 0:02:29.1]} 30. Rf2 {[%clk 0:00:07.8]} 30...
a3 {[%clk 0:02:28.7]} 31. Bc6 {[%clk 0:00:08.8]} 31... Ra5 {[%clk 0:02:23.4]}
32. Bd5 {[%clk 0:00:06.9]} 32... Qd6 {[%clk 0:02:14.5]} 33. Qd3 {[%clk
0:00:04.3]} 33... Nxd5 {[%clk 0:02:14.4]} 34. cxd5 {[%clk 0:00:05.9]} 34...
Qxd5+ {[%clk 0:02:15.4]} 35. Qf3 {[%clk 0:00:07.3]} 35... Qxa2 {[%clk
0:02:14.3]} 36. Ne4 {[%clk 0:00:06.2]} 36... Qd5 {[%clk 0:02:10.1]} 37. g4
{[%clk 0:00:03.4]} 37... a2 {[%clk 0:02:09.9]} 38. Rf1 {[%clk 0:00:02.6]} 38...
Kh8 {[%clk 0:02:06.5]} 0-1